[Event "15e Open International de Quenza"]
[Site "Quenza"]
[Date "2026.07.05"]
[Round "2.16"]
[White "KJARTANSSON, Gudmundur"]
[Black "TANNOUS BONELLI, Maxime"]
[Result "1-0"]
[TimeControl "5min+3s"]
[WhiteTitle "GM"]
[BlackTitle "-"]
[WhiteFideId "-"]
[BlackFideId "-"]
[WhiteElo "2367"]
[BlackElo "1802"]

1. e4 {[%clk 00:05:03]} e5 {[%clk 00:05:03]} {[%emt 00:00:03]} 2. Nf3 {[%clk
00:05:03]} Nc6 {[%clk 00:05:03]} 3. Bb5 {[%clk 00:05:03]} {[%emt 00:00:02]} d6
{[%clk 00:05:03]} {[%emt 00:00:03]} 4. d4 {[%clk 00:05:03]} {[%emt 00:00:01]}
exd4 {[%clk 00:05:03]} {[%emt 00:00:03]} 5. Nxd4 {[%clk 00:05:03]} {[%emt
00:00:01]} Bd7 {[%clk 00:05:03]} {[%emt 00:00:02]} 6. Nc3 {[%clk 00:05:03]}
{[%emt 00:00:03]} Nf6 {[%clk 00:05:03]} {[%emt 00:00:02]} 7. O-O {[%clk
00:05:03]} {[%emt 00:00:02]} Be7 {[%clk 00:05:02]} {[%emt 00:00:04]} 8. Re1
{[%clk 00:05:03]} {[%emt 00:00:03]} O-O {[%clk 00:05:01]} {[%emt 00:00:04]} 9.
h3 {[%clk 00:04:52]} {[%emt 00:00:15]} Nxd4 {[%clk 00:04:56]} {[%emt 00:00:07]}
10. Qxd4 {[%clk 00:04:52]} {[%emt 00:00:02]} Bxb5 {[%clk 00:04:56]} {[%emt
00:00:03]} 11. Nxb5 {[%clk 00:04:52]} {[%emt 00:00:01]} a6 {[%clk 00:04:55]}
{[%emt 00:00:04]} 12. Nc3 {[%clk 00:04:52]} Re8 {[%clk 00:04:54]} {[%emt
00:00:05]} 13. Bf4 {[%clk 00:04:43]} {[%emt 00:00:12]} Qd7 {[%clk 00:04:18]}
{[%emt 00:00:38]} 14. Rad1 {[%clk 00:04:41]} {[%emt 00:00:04]} Rad8 {[%clk
00:04:17]} {[%emt 00:00:05]} 15. a4 {[%clk 00:04:20]} {[%emt 00:00:25]} Qc6
{[%clk 00:04:03]} {[%emt 00:00:16]} 16. Rd3 {[%clk 00:04:10]} {[%emt 00:00:14]}
Nh5 {[%clk 00:03:45]} {[%emt 00:00:21]} 17. Bd2 {[%clk 00:04:00]} {[%emt
00:00:12]} Qc5 {[%clk 00:03:19]} {[%emt 00:00:30]} 18. Qxc5 {[%clk 00:03:40]}
{[%emt 00:00:23]} dxc5 {[%clk 00:03:19]} {[%emt 00:00:02]} 19. Nd5 {[%clk
00:03:39]} {[%emt 00:00:04]} Bd6 {[%clk 00:03:09]} {[%emt 00:00:13]} 20. f3
{[%clk 00:03:19]} {[%emt 00:00:23]} Ng3 {[%clk 00:02:28]} {[%emt 00:00:44]} 21.
Bg5 {[%clk 00:02:25]} {[%emt 00:00:57]} f6 {[%clk 00:02:18]} {[%emt 00:00:13]}
22. Bf4 {[%clk 00:02:25]} {[%emt 00:00:04]} Nh5 {[%clk 00:01:53]} {[%emt
00:00:27]} 23. Bxd6 {[%clk 00:02:24]} {[%emt 00:00:05]} Rxd6 {[%clk 00:01:25]}
{[%emt 00:00:31]} 24. Nxc7 {[%clk 00:02:19]} {[%emt 00:00:08]} Rxd3 {[%clk
00:01:21]} {[%emt 00:00:06]} 25. cxd3 {[%clk 00:02:19]} {[%emt 00:00:01]} Rc8
{[%clk 00:01:15]} {[%emt 00:00:09]} 26. Nd5 {[%clk 00:02:18]} {[%emt 00:00:03]}
g5 {[%clk 00:01:00]} {[%emt 00:00:18]} 27. Ne7+ {[%clk 00:02:18]} {[%emt
00:00:02]} 1-0

[Event "15e Open International de Quenza"]
[Site "Quenza"]
[Date "2026.07.05"]
[Round "2.6"]
[White "SUMETS, Andrey"]
[Black "FRAGNAUD, Jean-Guy"]
[Result "1-0"]
[TimeControl "5min+3s"]
[WhiteTitle "GM"]
[BlackTitle "-"]
[WhiteFideId "-"]
[BlackFideId "-"]
[WhiteElo "2470"]
[BlackElo "1929"]

1. d4 {[%clk 00:05:03]} Nf6 {[%clk 00:05:02]} {[%emt 00:00:04]} 2. c4 {[%clk
00:05:03]} {[%emt 00:00:02]} c5 {[%clk 00:05:02]} {[%emt 00:00:01]} 3. d5
{[%clk 00:05:03]} {[%emt 00:00:01]} e6 {[%clk 00:05:00]} {[%emt 00:00:05]} 4.
Nf3 {[%clk 00:05:03]} {[%emt 00:00:02]} exd5 {[%clk 00:04:59]} {[%emt
00:00:04]} 5. cxd5 {[%clk 00:05:03]} {[%emt 00:00:02]} d6 {[%clk 00:04:59]}
{[%emt 00:00:02]} 6. Nc3 {[%clk 00:04:58]} {[%emt 00:00:09]} g6 {[%clk
00:04:59]} {[%emt 00:00:04]} 7. Nd2 {[%clk 00:04:52]} {[%emt 00:00:08]} a6
{[%clk 00:04:59]} {[%emt 00:00:02]} 8. a4 {[%clk 00:04:52]} {[%emt 00:00:01]}
Nbd7 {[%clk 00:04:57]} {[%emt 00:00:05]} 9. e4 {[%clk 00:04:52]} {[%emt
00:00:01]} Bg7 {[%clk 00:04:56]} {[%emt 00:00:04]} 10. Be2 {[%clk 00:04:52]}
{[%emt 00:00:02]} O-O {[%clk 00:04:56]} {[%emt 00:00:03]} 11. O-O {[%clk
00:04:52]} {[%emt 00:00:02]} Re8 {[%clk 00:04:56]} {[%emt 00:00:02]} 12. Re1
{[%clk 00:04:52]} {[%emt 00:00:02]} Qc7 {[%clk 00:04:56]} {[%emt 00:00:04]} 13.
Qc2 {[%clk 00:04:50]} {[%emt 00:00:05]} Rb8 {[%clk 00:04:50]} {[%emt 00:00:08]}
14. b3 {[%clk 00:04:47]} {[%emt 00:00:07]} Ne5 {[%clk 00:04:44]} {[%emt
00:00:09]} 15. Bb2 {[%clk 00:04:46]} {[%emt 00:00:04]} Bg4 {[%clk 00:04:29]}
{[%emt 00:00:18]} 16. f3 {[%clk 00:04:39]} {[%emt 00:00:11]} Bc8 {[%clk
00:04:29]} {[%emt 00:00:01]} 17. Nc4 {[%clk 00:04:16]} {[%emt 00:00:25]} Nfd7
{[%clk 00:04:09]} {[%emt 00:00:23]} 18. Ne3 {[%clk 00:04:12]} {[%emt 00:00:07]}
h5 {[%clk 00:03:43]} {[%emt 00:00:29]} 19. f4 {[%clk 00:03:56]} {[%emt
00:00:19]} Ng4 {[%clk 00:03:43]} {[%emt 00:00:01]} 20. Nxg4 {[%clk 00:03:55]}
{[%emt 00:00:03]} hxg4 {[%clk 00:03:42]} {[%emt 00:00:04]} 21. Bxg4 {[%clk
00:03:55]} {[%emt 00:00:03]} c4 {[%clk 00:03:38]} {[%emt 00:00:07]} 22. bxc4
{[%clk 00:03:04]} {[%emt 00:00:54]} Qxc4 {[%clk 00:03:36]} {[%emt 00:00:05]} 23.
Be2 {[%clk 00:02:59]} {[%emt 00:00:08]} Qc7 {[%clk 00:03:21]} {[%emt 00:00:19]}
24. Rac1 {[%clk 00:02:54]} {[%emt 00:00:08]} Nc5 {[%clk 00:03:20]} {[%emt
00:00:04]} 25. Bf3 {[%clk 00:02:54]} {[%emt 00:00:03]} Bd7 {[%clk 00:03:06]}
{[%emt 00:00:17]} 26. Kh1 {[%clk 00:02:49]} {[%emt 00:00:08]} b5 {[%clk
00:03:06]} {[%emt 00:00:03]} 27. axb5 {[%clk 00:02:49]} {[%emt 00:00:02]} axb5
{[%clk 00:02:58]} {[%emt 00:00:11]} 28. e5 {[%clk 00:02:35]} {[%emt 00:00:17]}
Bf5 {[%clk 00:02:49]} {[%emt 00:00:11]} 29. Ne4 {[%clk 00:02:17]} {[%emt
00:00:22]} dxe5 {[%clk 00:02:34]} {[%emt 00:00:18]} 30. Qxc5 {[%clk 00:02:15]}
{[%emt 00:00:05]} Qa5 {[%clk 00:02:23]} {[%emt 00:00:14]} 31. fxe5 {[%clk
00:02:08]} {[%emt 00:00:10]} Bxe5 {[%clk 00:02:18]} {[%emt 00:00:08]} 32. Bxe5
{[%clk 00:02:08]} {[%emt 00:00:03]} Rxe5 {[%clk 00:02:18]} {[%emt 00:00:02]} 33.
Nf6+ {[%clk 00:02:08]} {[%emt 00:00:02]} Kg7 {[%clk 00:02:15]} {[%emt
00:00:06]} 34. Rxe5 {[%clk 00:02:08]} {[%emt 00:00:02]} Kxf6 {[%clk 00:02:13]}
{[%emt 00:00:05]} 35. Qd6+ {[%clk 00:02:08]} {[%emt 00:00:02]} 1-0

[Event "15e Open International de Quenza"]
[Site "Quenza"]
[Date "2026.07.05"]
[Round "2.10"]
[White "BRODOWSKI, Piotr"]
[Black "CHARNI, Ilyes"]
[Result "1-0"]
[TimeControl "5min+3s"]
[WhiteTitle "IM"]
[BlackTitle "-"]
[WhiteFideId "-"]
[BlackFideId "-"]
[WhiteElo "2435"]
[BlackElo "1876"]

1. c4 {[%clk 00:05:03]} Nf6 {[%clk 00:05:03]} {[%emt 00:00:01]} 2. g3 {[%clk
00:05:03]} {[%emt 00:00:02]} e6 {[%clk 00:05:03]} 3. Bg2 {[%clk 00:05:03]} d5
{[%clk 00:05:03]} {[%emt 00:00:02]} 4. Nf3 {[%clk 00:05:01]} {[%emt 00:00:05]}
Be7 {[%clk 00:05:03]} {[%emt 00:00:03]} 5. O-O {[%clk 00:05:01]} {[%emt
00:00:02]} O-O {[%clk 00:05:03]} {[%emt 00:00:02]} 6. b3 {[%clk 00:05:01]}
{[%emt 00:00:01]} c5 {[%clk 00:04:46]} {[%emt 00:00:21]} 7. cxd5 {[%clk
00:05:01]} exd5 {[%clk 00:04:46]} {[%emt 00:00:01]} 8. d4 {[%clk 00:05:00]}
{[%emt 00:00:04]} cxd4 {[%clk 00:04:26]} {[%emt 00:00:23]} 9. Nxd4 {[%clk
00:04:53]} {[%emt 00:00:09]} Nc6 {[%clk 00:04:26]} {[%emt 00:00:02]} 10. Bb2
{[%clk 00:04:53]} {[%emt 00:00:02]} Re8 {[%clk 00:03:46]} {[%emt 00:00:43]} 11.
Nd2 {[%clk 00:04:49]} {[%emt 00:00:07]} Bc5 {[%clk 00:03:31]} {[%emt 00:00:18]}
12. N2f3 {[%clk 00:03:37]} {[%emt 00:01:15]} Ne4 {[%clk 00:02:45]} {[%emt
00:00:50]} 13. Rc1 {[%clk 00:03:17]} {[%emt 00:00:23]} Qb6 {[%clk 00:02:37]}
{[%emt 00:00:10]} 14. e3 {[%clk 00:03:00]} {[%emt 00:00:21]} a5 {[%clk
00:02:09]} {[%emt 00:00:30]} 15. Nxc6 {[%clk 00:02:59]} {[%emt 00:00:04]} bxc6
{[%clk 00:02:06]} {[%emt 00:00:07]} 16. Bd4 {[%clk 00:02:59]} {[%emt 00:00:01]}
Ba6 {[%clk 00:01:53]} {[%emt 00:00:15]} 17. Re1 {[%clk 00:02:55]} {[%emt
00:00:08]} Bxd4 {[%clk 00:01:45]} {[%emt 00:00:11]} 18. Qxd4 {[%clk 00:02:55]}
{[%emt 00:00:02]} Qxd4 {[%clk 00:01:39]} {[%emt 00:00:09]} 19. Nxd4 {[%clk
00:01:58]} {[%emt 00:01:00]} c5 {[%clk 00:01:12]} {[%emt 00:00:30]} 20. Nf5
{[%clk 00:01:58]} a4 {[%clk 00:01:12]} {[%emt 00:00:04]} 21. Bxe4 {[%clk
00:01:55]} {[%emt 00:00:05]} dxe4 {[%clk 00:01:12]} {[%emt 00:00:01]} 22. Rxc5
{[%clk 00:01:55]} {[%emt 00:00:02]} axb3 {[%clk 00:01:05]} {[%emt 00:00:10]} 23.
axb3 {[%clk 00:01:55]} {[%emt 00:00:01]} Rab8 {[%clk 00:01:05]} {[%emt
00:00:03]} 24. Nd4 {[%clk 00:01:55]} Rec8 {[%clk 00:01:04]} {[%emt 00:00:05]}
25. Rec1 {[%clk 00:01:55]} {[%emt 00:00:02]} Rxc5 {[%clk 00:01:03]} {[%emt
00:00:03]} 26. Rxc5 {[%clk 00:01:55]} {[%emt 00:00:01]} h6 {[%clk 00:00:51]}
{[%emt 00:00:15]} 27. h4 {[%clk 00:01:55]} {[%emt 00:00:03]} Bd3 {[%clk
00:00:51]} 28. g4 {[%clk 00:01:55]} {[%emt 00:00:03]} Ra8 {[%clk 00:00:51]}
{[%emt 00:00:01]} 29. Kg2 {[%clk 00:01:55]} {[%emt 00:00:02]} Ra6 {[%clk
00:00:27]} {[%emt 00:00:27]} 30. b4 {[%clk 00:01:51]} {[%emt 00:00:07]} Rg6
{[%clk 00:00:24]} {[%emt 00:00:05]} 31. Kg3 {[%clk 00:01:51]} {[%emt 00:00:02]}
h5 {[%clk 00:00:23]} {[%emt 00:00:04]} 32. Rxh5 {[%clk 00:01:48]} {[%emt
00:00:06]} Ba6 {[%clk 00:00:16]} {[%emt 00:00:10]} 33. Rc5 {[%clk 00:01:46]}
{[%emt 00:00:05]} Kf8 {[%clk 00:00:11]} {[%emt 00:00:08]} 34. Rc6 {[%clk
00:01:46]} {[%emt 00:00:03]} Rxc6 {[%clk 00:00:06]} {[%emt 00:00:08]} 35. Nxc6
{[%clk 00:01:46]} Bb7 {[%clk 00:00:06]} 36. Nd4 {[%clk 00:01:46]} {[%emt
00:00:03]} Ke7 {[%clk 00:00:06]} {[%emt 00:00:01]} 37. Kf4 {[%clk 00:01:46]}
Kd6 {[%clk 00:00:05]} {[%emt 00:00:04]} 38. Nf5+ {[%clk 00:01:46]} {[%emt
00:00:02]} 1-0

[Event "15e Open International de Quenza"]
[Site "Quenza"]
[Date "2026.07.05"]
[Round "2.14"]
[White "YANKELEVICH, Lev"]
[Black "SIBILLE, Ettore"]
[Result "1-0"]
[TimeControl "5min+3s"]
[WhiteTitle "GM"]
[BlackTitle "-"]
[WhiteFideId "-"]
[BlackFideId "-"]
[WhiteElo "2373"]
[BlackElo "1822"]

1. d4 {[%clk 00:05:03]} {[%emt 00:00:01]} f5 {[%clk 00:05:03]} {[%emt
00:00:02]} 2. Nf3 {[%clk 00:05:03]} {[%emt 00:00:03]} Nf6 {[%clk 00:05:03]}
{[%emt 00:00:01]} 3. c4 {[%clk 00:05:03]} {[%emt 00:00:01]} g6 {[%clk
00:04:57]} {[%emt 00:00:09]} 4. e3 {[%clk 00:05:03]} d6 {[%clk 00:04:55]}
{[%emt 00:00:06]} 5. b4 {[%clk 00:05:03]} Bg7 {[%clk 00:04:55]} {[%emt
00:00:02]} 6. Bb2 {[%clk 00:05:03]} {[%emt 00:00:02]} O-O {[%clk 00:04:55]}
{[%emt 00:00:02]} 7. Qb3 {[%clk 00:05:01]} {[%emt 00:00:04]} Kh8 {[%clk
00:04:10]} {[%emt 00:00:48]} 8. Be2 {[%clk 00:05:01]} {[%emt 00:00:02]} Nbd7
{[%clk 00:03:45]} {[%emt 00:00:29]} 9. O-O {[%clk 00:05:01]} {[%emt 00:00:04]}
Ne4 {[%clk 00:03:32]} {[%emt 00:00:15]} 10. d5 {[%clk 00:04:46]} {[%emt
00:00:18]} Bxb2 {[%clk 00:03:18]} {[%emt 00:00:17]} 11. Qxb2+ {[%clk 00:04:46]}
{[%emt 00:00:02]} Ndf6 {[%clk 00:03:03]} {[%emt 00:00:17]} 12. Nd4 {[%clk
00:04:34]} {[%emt 00:00:16]} Kg8 {[%clk 00:02:47]} {[%emt 00:00:18]} 13. h4
{[%clk 00:04:27]} {[%emt 00:00:10]} Bd7 {[%clk 00:02:22]} {[%emt 00:00:28]} 14.
g3 {[%clk 00:04:10]} {[%emt 00:00:21]} a6 {[%clk 00:01:44]} {[%emt 00:00:41]}
15. Kg2 {[%clk 00:04:10]} {[%emt 00:00:02]} Ng4 {[%clk 00:01:33]} {[%emt
00:00:14]} 16. Nc3 {[%clk 00:03:56]} {[%emt 00:00:17]} Nxc3 {[%clk 00:01:01]}
{[%emt 00:00:35]} 17. Qxc3 {[%clk 00:03:56]} {[%emt 00:00:03]} Nf6 {[%clk
00:00:59]} {[%emt 00:00:05]} 18. Bf3 {[%clk 00:03:53]} {[%emt 00:00:06]} b6
{[%clk 00:00:51]} {[%emt 00:00:11]} 19. Qd3 {[%clk 00:03:53]} {[%emt 00:00:02]}
Rb8 {[%clk 00:00:48]} {[%emt 00:00:06]} 20. a3 {[%clk 00:03:51]} {[%emt
00:00:06]} Qe8 {[%clk 00:00:48]} 21. Rh1 {[%clk 00:03:51]} {[%emt 00:00:01]}
Kg7 {[%clk 00:00:41]} {[%emt 00:00:10]} 22. Rae1 {[%clk 00:03:49]} {[%emt
00:00:04]} h5 {[%clk 00:00:35]} {[%emt 00:00:09]} 23. Ne2 {[%clk 00:03:49]}
{[%emt 00:00:03]} e5 {[%clk 00:00:31]} {[%emt 00:00:07]} 24. dxe6 {[%clk
00:03:49]} {[%emt 00:00:02]} Bxe6 {[%clk 00:00:31]} {[%emt 00:00:01]} 25. Nf4
{[%clk 00:03:49]} {[%emt 00:00:03]} Bf7 {[%clk 00:00:30]} {[%emt 00:00:03]} 26.
Rc1 {[%clk 00:03:49]} {[%emt 00:00:03]} Qe5 {[%clk 00:00:24]} {[%emt 00:00:09]}
27. Bd5 {[%clk 00:03:41]} {[%emt 00:00:11]} Nxd5 {[%clk 00:00:15]} {[%emt
00:00:13]} 28. cxd5 {[%clk 00:03:41]} {[%emt 00:00:02]} Rbc8 {[%clk 00:00:14]}
{[%emt 00:00:04]} 29. Rc3 {[%clk 00:03:34]} {[%emt 00:00:10]} Rfe8 {[%clk
00:00:14]} {[%emt 00:00:02]} 30. Rhc1 {[%clk 00:03:34]} {[%emt 00:00:02]} Re7
{[%clk 00:00:14]} 31. Kg1 {[%clk 00:03:31]} {[%emt 00:00:06]} b5 {[%clk
00:00:14]} {[%emt 00:00:03]} 32. Rc6 {[%clk 00:03:31]} {[%emt 00:00:02]} Qb2
{[%clk 00:00:05]} {[%emt 00:00:12]} 33. R6c3 {[%clk 00:03:17]} {[%emt
00:00:18]} Be8 {[%emt 00:00:05]} 1-0

[Event "15e Open International de Quenza"]
[Site "Quenza"]
[Date "2026.07.05"]
[Round "2.9"]
[White "BENZIDI, Lyad"]
[Black "TERRIEUX, Kevin"]
[Result "0-1"]
[TimeControl "5min+3s"]
[WhiteTitle "-"]
[BlackTitle "IM"]
[WhiteFideId "-"]
[BlackFideId "-"]
[WhiteElo "1846"]
[BlackElo "2451"]

1. d4 {[%clk 00:05:03]} {[%emt 00:00:02]} d5 {[%clk 00:05:02]} {[%emt
00:00:04]} 2. c4 {[%clk 00:05:03]} {[%emt 00:00:02]} dxc4 {[%clk 00:05:02]}
{[%emt 00:00:02]} 3. Nf3 {[%clk 00:05:03]} {[%emt 00:00:03]} Nf6 {[%clk
00:05:02]} {[%emt 00:00:03]} 4. e3 {[%clk 00:05:03]} {[%emt 00:00:02]} Bg4
{[%clk 00:05:02]} {[%emt 00:00:02]} 5. Bxc4 {[%clk 00:04:56]} {[%emt 00:00:10]}
e6 {[%clk 00:05:02]} {[%emt 00:00:02]} 6. Nc3 {[%clk 00:04:36]} {[%emt
00:00:23]} Nc6 {[%clk 00:04:56]} {[%emt 00:00:10]} 7. O-O {[%clk 00:04:33]}
{[%emt 00:00:04]} Bd6 {[%clk 00:04:55]} {[%emt 00:00:05]} 8. h3 {[%clk
00:04:33]} {[%emt 00:00:03]} Bh5 {[%clk 00:04:55]} {[%emt 00:00:01]} 9. Be2
{[%clk 00:04:21]} {[%emt 00:00:15]} O-O {[%clk 00:04:55]} {[%emt 00:00:03]} 10.
e4 {[%clk 00:04:03]} {[%emt 00:00:21]} Bxf3 {[%clk 00:04:52]} {[%emt 00:00:06]}
11. Bxf3 {[%clk 00:04:03]} {[%emt 00:00:02]} Nxd4 {[%clk 00:04:52]} {[%emt
00:00:03]} 12. Bg5 {[%clk 00:03:37]} {[%emt 00:00:29]} h6 {[%clk 00:04:42]}
{[%emt 00:00:13]} 13. Be3 {[%clk 00:02:53]} {[%emt 00:00:46]} Be5 {[%clk
00:04:41]} {[%emt 00:00:05]} 14. Be2 {[%clk 00:02:14]} {[%emt 00:00:42]} Nxe2+
{[%clk 00:04:38]} {[%emt 00:00:06]} 15. Qxe2 {[%clk 00:02:14]} {[%emt
00:00:01]} Bxc3 {[%clk 00:04:37]} {[%emt 00:00:05]} 16. bxc3 {[%clk 00:02:14]}
{[%emt 00:00:02]} Nxe4 {[%clk 00:03:47]} {[%emt 00:00:52]} 17. Bxh6 {[%clk
00:01:42]} {[%emt 00:00:35]} Nxc3 {[%clk 00:03:47]} {[%emt 00:00:03]} 18. Qe5
{[%clk 00:01:33]} {[%emt 00:00:11]} Qd4 {[%clk 00:03:12]} {[%emt 00:00:38]} 19.
Bxg7 {[%clk 00:01:00]} {[%emt 00:00:37]} Qxe5 {[%clk 00:03:12]} {[%emt
00:00:02]} 20. Bxe5 {[%clk 00:01:00]} {[%emt 00:00:01]} Nd5 {[%clk 00:03:12]}
{[%emt 00:00:02]} 21. Rab1 {[%clk 00:00:57]} {[%emt 00:00:07]} b6 {[%clk
00:03:11]} {[%emt 00:00:04]} 22. Rb3 {[%clk 00:00:53]} {[%emt 00:00:06]} f6
{[%clk 00:03:11]} {[%emt 00:00:03]} 23. Bb2 {[%clk 00:00:38]} {[%emt 00:00:17]}
c5 {[%clk 00:03:07]} {[%emt 00:00:07]} 24. Re1 {[%clk 00:00:35]} {[%emt
00:00:07]} Kf7 {[%clk 00:03:06]} {[%emt 00:00:03]} 25. Rd3 {[%clk 00:00:12]}
{[%emt 00:00:26]} c4 {[%clk 00:03:05]} {[%emt 00:00:05]} 26. Rf3 {[%clk
00:00:06]} {[%emt 00:00:08]} Rac8 {[%clk 00:03:04]} {[%emt 00:00:04]} 27. Ba3
{[%clk 00:00:06]} {[%emt 00:00:03]} Rfe8 {[%clk 00:02:59]} {[%emt 00:00:08]} 28.
Rc1 {[%clk 00:00:06]} {[%emt 00:00:04]} b5 {[%clk 00:02:54]} {[%emt 00:00:07]}
29. Kf1 {[%clk 00:00:05]} {[%emt 00:00:04]} b4 {[%clk 00:02:53]} {[%emt
00:00:04]} 30. Bb2 {[%clk 00:00:05]} {[%emt 00:00:01]} c3 {[%clk 00:02:53]}
{[%emt 00:00:02]} 31. Ba1 {[%clk 00:00:04]} {[%emt 00:00:03]} a5 {[%clk
00:02:52]} {[%emt 00:00:05]} 32. a3 {[%clk 00:00:04]} {[%emt 00:00:03]} Rc4
{[%clk 00:02:49]} {[%emt 00:00:06]} 33. axb4 {[%emt 00:00:05]} 0-1

[Event "15e Open International de Quenza"]
[Site "Quenza"]
[Date "2026.07.05"]
[Round "2.2"]
[White "LAGARDE, Maxime"]
[Black "PAOLI, Guillaume"]
[Result "1-0"]
[TimeControl "5min+3s"]
[WhiteTitle "GM"]
[BlackTitle "-"]
[WhiteFideId "-"]
[BlackFideId "-"]
[WhiteElo "2583"]
[BlackElo "1991"]

1. Nf3 {[%clk 00:05:03]} {[%emt 00:08:14]} c5 {[%clk 00:05:03]} 2. b3 {[%clk
00:05:03]} {[%emt 00:00:02]} d6 {[%clk 00:05:03]} {[%emt 00:00:02]} 3. Bb2
{[%clk 00:05:03]} {[%emt 00:00:01]} Nf6 {[%clk 00:05:02]} {[%emt 00:00:04]} 4.
Bxf6 {[%clk 00:05:03]} {[%emt 00:00:04]} gxf6 {[%clk 00:05:00]} {[%emt
00:00:05]} 5. c4 {[%clk 00:05:03]} {[%emt 00:00:02]} Nc6 {[%clk 00:05:00]} 6.
Nc3 {[%clk 00:05:03]} {[%emt 00:00:01]} Bg4 {[%clk 00:04:59]} {[%emt 00:00:04]}
7. e3 {[%clk 00:05:03]} {[%emt 00:00:03]} Ne5 {[%clk 00:04:49]} {[%emt
00:00:12]} 8. Be2 {[%clk 00:05:03]} {[%emt 00:00:03]} Bxf3 {[%clk 00:04:48]}
{[%emt 00:00:05]} 9. Bxf3 {[%emt 00:00:17]} Rb8 {[%clk 00:04:29]} {[%emt
00:00:20]} 10. d4 {[%clk 00:04:48]} {[%emt 00:00:06]} Qa5 {[%clk 00:04:21]}
{[%emt 00:00:11]} 11. Rc1 {[%clk 00:04:44]} {[%emt 00:00:07]} Nxf3+ {[%clk
00:03:44]} {[%emt 00:00:40]} 12. Qxf3 {[%clk 00:04:44]} {[%emt 00:00:03]} Bh6
{[%clk 00:03:40]} {[%emt 00:00:07]} 13. dxc5 {[%clk 00:04:20]} {[%emt
00:00:27]} Qxc5 {[%clk 00:03:07]} {[%emt 00:00:36]} 14. O-O {[%clk 00:04:09]}
{[%emt 00:00:13]} Rg8 {[%clk 00:02:12]} {[%emt 00:00:59]} 15. Nd5 {[%clk
00:04:08]} {[%emt 00:00:05]} Rg6 {[%clk 00:01:56]} {[%emt 00:00:18]} 16. b4
{[%clk 00:04:08]} {[%emt 00:00:03]} Qc8 {[%clk 00:01:53]} {[%emt 00:00:06]} 17.
c5 {[%clk 00:04:06]} {[%emt 00:00:05]} dxc5 {[%clk 00:01:40]} {[%emt 00:00:16]}
18. Rxc5 {[%clk 00:04:05]} {[%emt 00:00:03]} Qg4 {[%clk 00:01:40]} {[%emt
00:00:01]} 19. Qxg4 {[%clk 00:03:52]} {[%emt 00:00:17]} Rxg4 {[%clk 00:01:40]}
{[%emt 00:00:01]} 20. f4 {[%clk 00:03:50]} {[%emt 00:00:05]} Kf8 {[%clk
00:01:22]} {[%emt 00:00:22]} 21. Rfc1 {[%clk 00:03:46]} {[%emt 00:00:07]} Rd8
{[%clk 00:01:15]} {[%emt 00:00:10]} 22. Rc8 {[%clk 00:03:46]} {[%emt 00:00:03]}
Ke8 {[%clk 00:00:56]} {[%emt 00:00:20]} 23. Rxd8+ {[%clk 00:03:39]} {[%emt
00:00:11]} Kxd8 {[%clk 00:00:56]} {[%emt 00:00:02]} 24. Rd1 {[%clk 00:03:09]}
{[%emt 00:00:32]} Ke8 {[%clk 00:00:49]} {[%emt 00:00:10]} 25. Nc7+ {[%clk
00:03:05]} {[%emt 00:00:08]} Kf8 {[%clk 00:00:49]} {[%emt 00:00:01]} 26. Rd8+
{[%clk 00:03:05]} {[%emt 00:00:01]} Kg7 {[%clk 00:00:49]} 27. h3 {[%clk
00:03:03]} {[%emt 00:00:04]} Rh4 {[%clk 00:00:47]} {[%emt 00:00:05]} 28. Kf2
{[%clk 00:02:19]} {[%emt 00:00:48]} e5 {[%clk 00:00:46]} {[%emt 00:00:05]} 29.
Kg3 {[%clk 00:02:04]} {[%emt 00:00:18]} Rh5 {[%clk 00:00:32]} {[%emt 00:00:16]}
30. Kg4 {[%clk 00:01:59]} {[%emt 00:00:14]} 1-0